[Event "Titled Tuesday Blitz May 30 Early 2023"]
[White "Borodavkin, Anatoly"]
[Black "Sanhueza, Cristian"]
[WhiteFideId "14150662"]
[BlackFideId "116815"]
[WhiteElo "1991"]
[BlackElo "2174"]
[Result "0-1"]
[Round "05"]
[TimeControl "180+2"]
[Date "2023.05.30"]
[WhiteClock "0:00:05"]
[BlackClock "0:00:24"]

1. e4 {[%clk 0:03:00]}  e5 {[%clk 0:02:59]} 2. Nf3 {[%clk 0:03:00]}  Nc6 {[%clk 0:02:59]} 3. Bb5 {[%clk 0:02:59]}  a6 {[%clk 0:02:59]} 4. Ba4 {[%clk 0:02:59]}  Nf6 {[%clk 0:02:59]} 5. O-O {[%clk 0:02:59]}  Nxe4 {[%clk 0:02:59]} 6. d4 {[%clk 0:02:57]}  b5 {[%clk 0:03:00]} 7. Bb3 {[%clk 0:02:56]}  d5 {[%clk 0:03:00]} 8. dxe5 {[%clk 0:02:53]}  Be6 {[%clk 0:03:01]} 9. Re1 {[%clk 0:02:49]}  Be7 {[%clk 0:02:59]} 10. Nbd2 {[%clk 0:02:47]}  Nc5 {[%clk 0:02:58]} 11. c3 {[%clk 0:02:36]}  O-O {[%clk 0:02:58]} 12. Bc2 {[%clk 0:02:35]}  d4 {[%clk 0:02:57]} 13. cxd4 {[%clk 0:02:34]}  Nxd4 {[%clk 0:02:58]} 14. Nxd4 {[%clk 0:02:34]}  Qxd4 {[%clk 0:02:59]} 15. Nf3 {[%clk 0:02:33]}  Qxd1 {[%clk 0:02:59]} 16. Rxd1 {[%clk 0:02:33]}  Rfd8 {[%clk 0:02:58]} 17. Be3 {[%clk 0:02:31]}  Bg4 {[%clk 0:02:55]} 18. h3 {[%clk 0:02:25]}  Bh5 {[%clk 0:02:44]} 19. g4 {[%clk 0:02:23]}  Bg6 {[%clk 0:02:45]} 20. Bxg6 {[%clk 0:02:19]}  hxg6 {[%clk 0:02:45]} 21. Nd4 {[%clk 0:02:17]}  Ne6 {[%clk 0:02:07]} 22. Nc6 {[%clk 0:02:14]}  Rxd1+ {[%clk 0:02:06]} 23. Rxd1 {[%clk 0:02:13]}  Bc5 {[%clk 0:02:03]} 24. Bxc5 {[%clk 0:02:06]}  Nxc5 {[%clk 0:02:04]} 25. b4 {[%clk 0:02:04]}  Ne6 {[%clk 0:01:43]} 26. Rd7 {[%clk 0:02:00]}  g5 {[%clk 0:01:43]} 27. Kg2 {[%clk 0:01:46]}  Re8 {[%clk 0:01:30]} 28. Kg3 {[%clk 0:01:41]}  g6 {[%clk 0:01:24]} 29. h4 {[%clk 0:01:23]}  gxh4+ {[%clk 0:01:21]} 30. Kxh4 {[%clk 0:01:23]}  g5+ {[%clk 0:01:21]} 31. Kg3 {[%clk 0:01:23]}  Kg7 {[%clk 0:01:20]} 32. Kf3 {[%clk 0:01:19]}  Rh8 {[%clk 0:01:11]} 33. Kg3 {[%clk 0:01:12]}  Rh1 {[%clk 0:01:09]} 34. Nb8 {[%clk 0:01:06]}  Nf4 {[%clk 0:01:01]} 35. Kf3 {[%clk 0:01:00]}  Rb1 {[%clk 0:00:51]} 36. Nxa6 {[%clk 0:00:54]}  c6 {[%clk 0:00:50]} 37. Rc7 {[%clk 0:00:30]}  Ne6 {[%clk 0:00:48]} 38. Rd7 {[%clk 0:00:27]}  Kg6 {[%clk 0:00:46]} 39. Rd6 {[%clk 0:00:20]}  Kg7 {[%clk 0:00:47]} 40. Rd7 {[%clk 0:00:19]}  Rb2 {[%clk 0:00:47]} 41. Nb8 {[%clk 0:00:16]}  Rxa2 {[%clk 0:00:42]} 42. Nxc6 {[%clk 0:00:16]}  Rc2 {[%clk 0:00:43]} 43. Nd8 {[%clk 0:00:14]}  Rc3+ {[%clk 0:00:39]} 44. Ke4 {[%clk 0:00:12]}  Rc4+ {[%clk 0:00:36]} 45. Kd3 {[%clk 0:00:11]}  Nf4+ {[%clk 0:00:35]} 46. Ke3 {[%clk 0:00:11]}  Rc3+ {[%clk 0:00:33]} 47. Kd2 {[%clk 0:00:11]}  Rb3 {[%clk 0:00:30]} 48. Rxf7+ {[%clk 0:00:11]}  Kg6 {[%clk 0:00:31]} 49. Rf5 {[%clk 0:00:11]}  Rd3+ {[%clk 0:00:24]} 50. Kc2 {[%clk 0:00:10]}  Rxd8 {[%clk 0:00:25]} 51. e6 {[%clk 0:00:10]}  Nxe6 {[%clk 0:00:24]} 52. Rxb5 {[%clk 0:00:05]}  Nd4+ {[%clk 0:00:24]} 0-1


[Site "https://www.chess.com"]

[Event "Titled Tuesday Blitz May 30 Early 2023"]
[White "Kovalevsky, Stanislav"]
[Black "KSho99"]
[WhiteFideId "13508598"]
[WhiteElo "2174"]
[BlackElo "2183"]
[Result "1-0"]
[Round "05"]
[TimeControl "180+2"]
[Date "2023.05.30"]
[WhiteClock "0:00:09"]
[BlackClock "0:00:03"]

1. c4 {[%clk 0:02:59]}  f5 {[%clk 0:02:56]} 2. Nc3 {[%clk 0:02:57]}  Nf6 {[%clk 0:02:57]} 3. g3 {[%clk 0:02:57]}  e6 {[%clk 0:02:57]} 4. Bg2 {[%clk 0:02:57]}  c6 {[%clk 0:02:56]} 5. Nf3 {[%clk 0:02:50]}  d5 {[%clk 0:02:56]} 6. cxd5 {[%clk 0:02:51]}  exd5 {[%clk 0:02:53]} 7. d4 {[%clk 0:02:51]}  Ne4 {[%clk 0:02:37]} 8. O-O {[%clk 0:02:50]}  Be7 {[%clk 0:02:37]} 9. Qb3 {[%clk 0:02:34]}  Nd7 {[%clk 0:02:26]} 10. Bf4 {[%clk 0:01:57]}  O-O {[%clk 0:02:15]} 11. Ne5 {[%clk 0:01:45]}  Kh8 {[%clk 0:02:05]} 12. Rad1 {[%clk 0:01:03]}  Bf6 {[%clk 0:01:36]} 13. f3 {[%clk 0:00:52]}  Nxc3 {[%clk 0:01:25]} 14. bxc3 {[%clk 0:00:51]}  g5 {[%clk 0:01:13]} 15. Nxd7 {[%clk 0:00:42]}  Bxd7 {[%clk 0:01:06]} 16. Bd6 {[%clk 0:00:39]}  Rf7 {[%clk 0:01:06]} 17. e4 {[%clk 0:00:27]}  Be8 {[%clk 0:00:53]} 18. Ba3 {[%clk 0:00:16]}  fxe4 {[%clk 0:00:50]} 19. fxe4 {[%clk 0:00:16]}  dxe4 {[%clk 0:00:43]} 20. Bxe4 {[%clk 0:00:17]}  Rg7 {[%clk 0:00:33]} 21. Rf2 {[%clk 0:00:14]}  Bf7 {[%clk 0:00:17]} 22. Qxb7 {[%clk 0:00:12]}  Bd5 {[%clk 0:00:16]} 23. Qb1 {[%clk 0:00:09]}  Rb8 {[%clk 0:00:14]} 24. Qc2 {[%clk 0:00:09]}  Bc4 {[%clk 0:00:06]} 25. Bd3 {[%clk 0:00:09]}  Qd7 {[%clk 0:00:03]} 26. Bxc4 {[%clk 0:00:09]} 1-0


[Site "https://www.chess.com"]

[Event "Titled Tuesday Blitz May 30 Early 2023"]
[White "Flis, Pawel"]
[Black "Gatterer, Florian"]
[WhiteFideId "1112864"]
[BlackFideId "811688"]
[WhiteElo "1822"]
[BlackElo "2221"]
[Result "1/2-1/2"]
[Round "05"]
[TimeControl "180+2"]
[Date "2023.05.30"]
[WhiteClock "0:02:01"]
[BlackClock "0:02:26"]

1. e4 {[%clk 0:03:00]}  d5 {[%clk 0:02:57]} 2. exd5 {[%clk 0:02:59]}  Qxd5 {[%clk 0:02:58]} 3. Nc3 {[%clk 0:02:58]}  Qd8 {[%clk 0:02:59]} 4. Bc4 {[%clk 0:02:56]}  Nf6 {[%clk 0:02:59]} 5. Nf3 {[%clk 0:02:55]}  Bg4 {[%clk 0:02:59]} 6. h3 {[%clk 0:02:55]}  Bh5 {[%clk 0:02:58]} 7. g4 {[%clk 0:02:55]}  Bg6 {[%clk 0:02:57]} 8. d3 {[%clk 0:02:51]}  e6 {[%clk 0:02:56]} 9. Ne5 {[%clk 0:02:49]}  Nbd7 {[%clk 0:02:55]} 10. Nxg6 {[%clk 0:02:43]}  hxg6 {[%clk 0:02:56]} 11. Bg5 {[%clk 0:02:35]}  c6 {[%clk 0:02:52]} 12. Qe2 {[%clk 0:02:33]}  Qa5 {[%clk 0:02:51]} 13. Bd2 {[%clk 0:02:30]}  Qc7 {[%clk 0:02:47]} 14. O-O-O {[%clk 0:02:28]}  O-O-O {[%clk 0:02:46]} 15. f4 {[%clk 0:02:24]}  Bd6 {[%clk 0:02:40]} 16. Qf3 {[%clk 0:02:23]}  Nb6 {[%clk 0:02:30]} 17. Bb3 {[%clk 0:02:01]}  Nfd5 {[%clk 0:02:26]} 1/2-1/2


[Site "https://www.chess.com"]

[Event "Titled Tuesday Blitz May 30 Early 2023"]
[White "Manukian, Artak"]
[Black "Blackwhite017"]
[WhiteFideId "13301373"]
[WhiteElo "2130"]
[BlackElo "2105"]
[Result "1-0"]
[Round "05"]
[TimeControl "180+2"]
[Date "2023.05.30"]
[WhiteClock "0:01:28"]
[BlackClock "0:00:00"]

1. e4 {[%clk 0:03:00]}  c5 {[%clk 0:02:59]} 2. Nf3 {[%clk 0:02:58]}  d6 {[%clk 0:02:59]} 3. Bb5+ {[%clk 0:02:56]}  Nd7 {[%clk 0:02:59]} 4. O-O {[%clk 0:02:54]}  g6 {[%clk 0:02:58]} 5. c3 {[%clk 0:02:54]}  Nf6 {[%clk 0:02:50]} 6. Re1 {[%clk 0:02:44]}  Bg7 {[%clk 0:02:31]} 7. d4 {[%clk 0:02:41]}  O-O {[%clk 0:02:23]} 8. e5 {[%clk 0:02:41]}  Ne8 {[%clk 0:02:05]} 9. e6 {[%clk 0:02:36]}  fxe6 {[%clk 0:02:01]} 10. Ng5 {[%clk 0:02:36]}  Nc7 {[%clk 0:01:57]} 11. Bd3 {[%clk 0:02:35]}  cxd4 {[%clk 0:01:42]} 12. Nxh7 {[%clk 0:02:32]}  Kxh7 {[%clk 0:01:16]} 13. Qh5+ {[%clk 0:02:31]}  Kg8 {[%clk 0:01:16]} 14. Qxg6 {[%clk 0:02:32]}  Rf6 {[%clk 0:00:57]} 15. Qh7+ {[%clk 0:02:31]}  Kf7 {[%clk 0:00:25]} 16. Bg5 {[%clk 0:02:19]}  Qh8 {[%clk 0:00:23]} 17. Bxf6 {[%clk 0:01:55]}  Qxh7 {[%clk 0:00:19]} 18. Bxh7 {[%clk 0:01:56]}  Nxf6 {[%clk 0:00:19]} 19. Bc2 {[%clk 0:01:56]}  dxc3 {[%clk 0:00:19]} 20. Nxc3 {[%clk 0:01:56]}  e5 {[%clk 0:00:19]} 21. Rac1 {[%clk 0:01:54]}  Be6 {[%clk 0:00:18]} 22. f3 {[%clk 0:01:51]}  Ncd5 {[%clk 0:00:18]} 23. Nxd5 {[%clk 0:01:49]}  Nxd5 {[%clk 0:00:18]} 24. Be4 {[%clk 0:01:45]}  Nf4 {[%clk 0:00:13]} 25. Bxb7 {[%clk 0:01:41]}  Rb8 {[%clk 0:00:13]} 26. Rc7 {[%clk 0:01:41]}  Nd5 {[%clk 0:00:12]} 27. Bxd5 {[%clk 0:01:41]}  Bxd5 {[%clk 0:00:13]} 28. b3 {[%clk 0:01:40]}  Bh6 {[%clk 0:00:09]} 29. Rxa7 {[%clk 0:01:32]}  Rg8 {[%clk 0:00:09]} 30. Kf2 {[%clk 0:01:30]}  Bf4 {[%clk 0:00:09]} 31. g3 {[%clk 0:01:30]}  Bd2 {[%clk 0:00:09]} 32. Rd1 {[%clk 0:01:28]}  Bb4 {[%clk 0:00:00]} 33. Rxd5 {[%clk 0:01:28]} 1-0


[Site "https://www.chess.com"]

[Event "Titled Tuesday Blitz May 30 Early 2023"]
[White "Estrada Nieto, Julian"]
[Black "Brod, Manfred"]
[WhiteFideId "5101018"]
[BlackFideId "1602110"]
[WhiteElo "2161"]
[BlackElo "2152"]
[Result "1-0"]
[Round "05"]
[TimeControl "180+2"]
[Date "2023.05.30"]
[WhiteClock "0:00:15"]
[BlackClock "0:00:00"]

1. e4 {[%clk 0:03:00]}  e6 {[%clk 0:02:59]} 2. d4 {[%clk 0:02:59]}  d5 {[%clk 0:02:59]} 3. Nd2 {[%clk 0:03:00]}  Nf6 {[%clk 0:02:58]} 4. e5 {[%clk 0:03:00]}  Nfd7 {[%clk 0:02:58]} 5. Bd3 {[%clk 0:03:00]}  c5 {[%clk 0:02:58]} 6. c3 {[%clk 0:03:01]}  Nc6 {[%clk 0:02:58]} 7. Ne2 {[%clk 0:03:01]}  cxd4 {[%clk 0:02:57]} 8. cxd4 {[%clk 0:03:02]}  f6 {[%clk 0:02:58]} 9. exf6 {[%clk 0:03:03]}  Nxf6 {[%clk 0:02:58]} 10. Nf3 {[%clk 0:03:03]}  Bd6 {[%clk 0:02:57]} 11. O-O {[%clk 0:03:04]}  Qc7 {[%clk 0:02:58]} 12. Bg5 {[%clk 0:03:03]}  O-O {[%clk 0:02:11]} 13. Bh4 {[%clk 0:03:03]}  Nh5 {[%clk 0:02:09]} 14. Qc2 {[%clk 0:03:02]}  h6 {[%clk 0:02:07]} 15. Bg6 {[%clk 0:03:00]}  Rxf3 {[%clk 0:02:05]} 16. gxf3 {[%clk 0:02:56]}  Bxh2+ {[%clk 0:02:04]} 17. Kg2 {[%clk 0:02:56]}  Nf4+ {[%clk 0:01:52]} 18. Nxf4 {[%clk 0:02:56]}  Bxf4 {[%clk 0:01:51]} 19. Bg3 {[%clk 0:02:35]}  Bd7 {[%clk 0:01:50]} 20. Rfe1 {[%clk 0:02:21]}  Rf8 {[%clk 0:01:48]} 21. a3 {[%clk 0:02:13]}  Rf6 {[%clk 0:01:28]} 22. Rad1 {[%clk 0:02:04]}  Qb6 {[%clk 0:01:01]} 23. Bh5 {[%clk 0:01:48]}  Nxd4 {[%clk 0:00:57]} 24. Qd3 {[%clk 0:01:33]}  Nc6 {[%clk 0:00:46]} 25. Re2 {[%clk 0:01:27]}  Na5 {[%clk 0:00:35]} 26. Rc2 {[%clk 0:01:10]}  Nc6 {[%clk 0:00:27]} 27. Re1 {[%clk 0:01:02]}  Ne7 {[%clk 0:00:25]} 28. Bg4 {[%clk 0:00:54]}  Bxg3 {[%clk 0:00:21]} 29. fxg3 {[%clk 0:00:53]}  Nf5 {[%clk 0:00:22]} 30. Bxf5 {[%clk 0:00:47]}  Rxf5 {[%clk 0:00:21]} 31. Qe3 {[%clk 0:00:40]}  Qd8 {[%clk 0:00:17]} 32. Rec1 {[%clk 0:00:29]}  a6 {[%clk 0:00:16]} 33. g4 {[%clk 0:00:26]}  Rf6 {[%clk 0:00:14]} 34. Qe5 {[%clk 0:00:23]}  Bc6 {[%clk 0:00:13]} 35. Rxc6 {[%clk 0:00:18]}  bxc6 {[%clk 0:00:12]} 36. Rxc6 {[%clk 0:00:19]}  d4 {[%clk 0:00:12]} 37. Rd6 {[%clk 0:00:19]}  Qa8 {[%clk 0:00:11]} 38. Qe4 {[%clk 0:00:16]}  Qxe4 {[%clk 0:00:09]} 39. fxe4 {[%clk 0:00:16]}  Rf1 {[%clk 0:00:00]} 40. Kxf1 {[%clk 0:00:15]} 1-0


[Site "https://www.chess.com"]

[Event "Titled Tuesday Blitz May 30 Early 2023"]
[White "Joubert, Dantelle"]
[Black "Matveeva, Olga"]
[WhiteFideId "14310813"]
[BlackFideId "24107018"]
[WhiteElo "1507"]
[BlackElo "2009"]
[Result "0-1"]
[Round "05"]
[TimeControl "180+2"]
[Date "2023.05.30"]
[WhiteClock "0:00:00"]
[BlackClock "0:00:29"]

1. e4 {[%clk 0:03:00]}  e6 {[%clk 0:03:00]} 2. Nf3 {[%clk 0:02:59]}  d5 {[%clk 0:02:59]} 3. Nc3 {[%clk 0:02:57]}  Nf6 {[%clk 0:02:50]} 4. e5 {[%clk 0:02:56]}  Nfd7 {[%clk 0:02:50]} 5. d4 {[%clk 0:02:55]}  c5 {[%clk 0:02:49]} 6. dxc5 {[%clk 0:02:54]}  Bxc5 {[%clk 0:02:46]} 7. Bf4 {[%clk 0:02:53]}  Nc6 {[%clk 0:02:41]} 8. Bd3 {[%clk 0:02:50]}  Qb6 {[%clk 0:02:30]} 9. Qd2 {[%clk 0:02:49]}  Bb4 {[%clk 0:02:20]} 10. a3 {[%clk 0:02:41]}  Bxc3 {[%clk 0:02:19]} 11. Qxc3 {[%clk 0:02:36]}  Nc5 {[%clk 0:02:18]} 12. Be3 {[%clk 0:02:23]}  Nxd3+ {[%clk 0:02:17]} 13. cxd3 {[%clk 0:02:19]}  Qd8 {[%clk 0:02:05]} 14. Bc5 {[%clk 0:02:13]}  f6 {[%clk 0:01:36]} 15. d4 {[%clk 0:01:57]}  Kf7 {[%clk 0:01:28]} 16. O-O {[%clk 0:01:43]}  Bd7 {[%clk 0:01:27]} 17. Rfe1 {[%clk 0:01:40]}  Rc8 {[%clk 0:01:26]} 18. Qe3 {[%clk 0:01:15]}  Re8 {[%clk 0:01:19]} 19. exf6 {[%clk 0:01:10]}  Qxf6 {[%clk 0:01:14]} 20. Bd6 {[%clk 0:01:07]}  Kg8 {[%clk 0:01:05]} 21. Rad1 {[%clk 0:00:54]}  Na5 {[%clk 0:00:52]} 22. Ne5 {[%clk 0:00:41]}  Ba4 {[%clk 0:00:50]} 23. Ng4 {[%clk 0:00:21]}  Qh4 {[%clk 0:00:40]} 24. Qf4 {[%clk 0:00:04]}  Bxd1 {[%clk 0:00:37]} 25. Rxd1 {[%clk 0:00:04]}  Nc4 {[%clk 0:00:34]} 26. g3 {[%clk 0:00:00]}  Qh5 {[%clk 0:00:29]} 0-1


[Site "https://www.chess.com"]

[Event "Titled Tuesday Blitz May 30 Early 2023"]
[White "Lohani, Sujana"]
[Black "Sargissyan, Sargis"]
[WhiteFideId "12311987"]
[BlackFideId "13303210"]
[WhiteElo "1718"]
[BlackElo "2109"]
[Result "0-1"]
[Round "05"]
[TimeControl "180+2"]
[Date "2023.05.30"]
[WhiteClock "0:00:00"]
[BlackClock "0:00:40"]

1. d4 {[%clk 0:03:00]}  Nf6 {[%clk 0:02:57]} 2. Nf3 {[%clk 0:02:56]}  g6 {[%clk 0:02:56]} 3. c4 {[%clk 0:02:55]}  Bg7 {[%clk 0:02:57]} 4. g3 {[%clk 0:02:54]}  O-O {[%clk 0:02:57]} 5. Bg2 {[%clk 0:02:55]}  d6 {[%clk 0:02:56]} 6. O-O {[%clk 0:02:54]}  Nc6 {[%clk 0:02:57]} 7. Nc3 {[%clk 0:02:40]}  e5 {[%clk 0:02:54]} 8. d5 {[%clk 0:02:32]}  Ne7 {[%clk 0:02:53]} 9. e4 {[%clk 0:02:32]}  Nd7 {[%clk 0:02:54]} 10. Ne1 {[%clk 0:02:32]}  a5 {[%clk 0:02:45]} 11. Nd3 {[%clk 0:02:30]}  b6 {[%clk 0:02:46]} 12. f4 {[%clk 0:02:27]}  f5 {[%clk 0:02:45]} 13. fxe5 {[%clk 0:02:24]}  Nxe5 {[%clk 0:02:45]} 14. Nxe5 {[%clk 0:02:17]}  Bxe5 {[%clk 0:02:44]} 15. Qd3 {[%clk 0:02:11]}  fxe4 {[%clk 0:02:42]} 16. Nxe4 {[%clk 0:02:08]}  Nf5 {[%clk 0:02:42]} 17. Bg5 {[%clk 0:02:03]}  Qd7 {[%clk 0:02:39]} 18. g4 {[%clk 0:01:43]}  Ng7 {[%clk 0:02:28]} 19. Rxf8+ {[%clk 0:01:34]}  Kxf8 {[%clk 0:02:26]} 20. Rf1+ {[%clk 0:01:32]}  Kg8 {[%clk 0:02:27]} 21. h3 {[%clk 0:01:15]}  Qe8 {[%clk 0:01:57]} 22. Nf6+ {[%clk 0:01:00]}  Bxf6 {[%clk 0:01:57]} 23. Bxf6 {[%clk 0:00:57]}  Ba6 {[%clk 0:01:57]} 24. Qd4 {[%clk 0:00:39]}  Qd7 {[%clk 0:01:56]} 25. b3 {[%clk 0:00:27]}  Rf8 {[%clk 0:01:52]} 26. Re1 {[%clk 0:00:21]}  Qf7 {[%clk 0:01:41]} 27. g5 {[%clk 0:00:21]}  Re8 {[%clk 0:01:16]} 28. Rxe8+ {[%clk 0:00:19]}  Nxe8 {[%clk 0:01:16]} 29. Bf3 {[%clk 0:00:10]}  Bc8 {[%clk 0:01:15]} 30. h4 {[%clk 0:00:09]}  Nxf6 {[%clk 0:01:13]} 31. gxf6 {[%clk 0:00:09]}  Qe8 {[%clk 0:01:13]} 32. h5 {[%clk 0:00:08]}  Qe1+ {[%clk 0:01:11]} 33. Kh2 {[%clk 0:00:08]}  Kf7 {[%clk 0:01:08]} 34. hxg6+ {[%clk 0:00:06]}  hxg6 {[%clk 0:01:08]} 35. Qf4 {[%clk 0:00:03]}  Qe5 {[%clk 0:00:53]} 36. Qxe5 {[%clk 0:00:03]}  dxe5 {[%clk 0:00:53]} 37. Kg3 {[%clk 0:00:03]}  Kxf6 {[%clk 0:00:54]} 38. Be4 {[%clk 0:00:03]}  Bf5 {[%clk 0:00:42]} 39. Kf3 {[%clk 0:00:03]}  g5 {[%clk 0:00:43]} 40. Ke3 {[%clk 0:00:00]}  Bxe4 {[%clk 0:00:40]} 0-1


[Site "https://www.chess.com"]

[Event "Titled Tuesday Blitz May 30 Early 2023"]
[White "February, Jesse Nikki"]
[Black "Shtompel, Yuriy"]
[WhiteFideId "14312336"]
[BlackFideId "14168278"]
[WhiteElo "1824"]
[BlackElo "1844"]
[Result "0-1"]
[Round "05"]
[TimeControl "180+2"]
[Date "2023.05.30"]
[WhiteClock "0:00:00"]
[BlackClock "0:00:08"]

1. e4 {[%clk 0:02:40]}  c5 {[%clk 0:02:56]} 2. Nf3 {[%clk 0:02:38]}  d6 {[%clk 0:02:56]} 3. d4 {[%clk 0:02:36]}  cxd4 {[%clk 0:02:57]} 4. Nxd4 {[%clk 0:02:37]}  Nf6 {[%clk 0:02:58]} 5. Nc3 {[%clk 0:02:36]}  a6 {[%clk 0:02:58]} 6. a4 {[%clk 0:02:36]}  e5 {[%clk 0:02:55]} 7. Nde2 {[%clk 0:02:36]}  Be6 {[%clk 0:02:55]} 8. g3 {[%clk 0:02:28]}  Nbd7 {[%clk 0:02:46]} 9. Bg2 {[%clk 0:02:27]}  Be7 {[%clk 0:02:46]} 10. O-O {[%clk 0:02:24]}  O-O {[%clk 0:02:46]} 11. h3 {[%clk 0:02:23]}  Rc8 {[%clk 0:02:45]} 12. Be3 {[%clk 0:02:23]}  Nb6 {[%clk 0:02:03]} 13. Nd5 {[%clk 0:02:03]}  Nfxd5 {[%clk 0:01:43]} 14. exd5 {[%clk 0:02:04]}  Bf5 {[%clk 0:01:43]} 15. c3 {[%clk 0:01:35]}  Nc4 {[%clk 0:01:37]} 16. Bc1 {[%clk 0:01:34]}  a5 {[%clk 0:01:16]} 17. b3 {[%clk 0:01:33]}  Nb6 {[%clk 0:01:13]} 18. c4 {[%clk 0:01:34]}  Nd7 {[%clk 0:01:13]} 19. Be3 {[%clk 0:01:27]}  Nc5 {[%clk 0:01:06]} 20. Ra2 {[%clk 0:01:17]}  Bg5 {[%clk 0:00:49]} 21. Bxc5 {[%clk 0:01:09]}  Rxc5 {[%clk 0:00:48]} 22. f4 {[%clk 0:01:09]}  exf4 {[%clk 0:00:46]} 23. Nxf4 {[%clk 0:01:08]}  Re8 {[%clk 0:00:43]} 24. Raf2 {[%clk 0:01:05]}  Rc7 {[%clk 0:00:36]} 25. h4 {[%clk 0:00:57]}  Bh6 {[%clk 0:00:31]} 26. Kh2 {[%clk 0:00:36]}  Rce7 {[%clk 0:00:26]} 27. Nh5 {[%clk 0:00:20]}  Bg6 {[%clk 0:00:21]} 28. Nf4 {[%clk 0:00:19]}  Bxf4 {[%clk 0:00:15]} 29. Rxf4 {[%clk 0:00:20]}  Re2 {[%clk 0:00:16]} 30. R1f2 {[%clk 0:00:18]}  Qe7 {[%clk 0:00:15]} 31. Rxe2 {[%clk 0:00:16]}  Qxe2 {[%clk 0:00:16]} 32. Qf1 {[%clk 0:00:14]}  h5 {[%clk 0:00:13]} 33. Rf2 {[%clk 0:00:10]}  Qxf1 {[%clk 0:00:12]} 34. Rxf1 {[%clk 0:00:10]}  Re3 {[%clk 0:00:12]} 35. Rf3 {[%clk 0:00:10]}  Re2 {[%clk 0:00:12]} 36. Kg1 {[%clk 0:00:08]}  Rb2 {[%clk 0:00:08]} 37. Re3 {[%clk 0:00:00]}  Kf8 {[%clk 0:00:08]} 0-1


[Site "https://www.chess.com"]

[Event "Titled Tuesday Blitz May 30 Early 2023"]
[White "Levitan, Caleb Levi"]
[Black "vlajkovicS"]
[WhiteFideId "14332620"]
[WhiteElo "1963"]
[BlackElo "2634"]
[Result "0-1"]
[Round "05"]
[TimeControl "180+2"]
[Date "2023.05.30"]
[WhiteClock "0:00:00"]
[BlackClock "0:01:34"]

1. e4 {[%clk 0:03:00]}  d6 {[%clk 0:03:00]} 2. d4 {[%clk 0:03:00]}  Nf6 {[%clk 0:03:00]} 3. Nc3 {[%clk 0:02:59]}  e5 {[%clk 0:03:00]} 4. Nf3 {[%clk 0:02:57]}  Nc6 {[%clk 0:02:57]} 5. Bc4 {[%clk 0:02:48]}  exd4 {[%clk 0:02:55]} 6. Nxd4 {[%clk 0:02:47]}  Be7 {[%clk 0:02:55]} 7. O-O {[%clk 0:02:40]}  O-O {[%clk 0:02:54]} 8. h3 {[%clk 0:02:40]}  a6 {[%clk 0:02:54]} 9. a4 {[%clk 0:02:39]}  Ne5 {[%clk 0:02:50]} 10. Ba2 {[%clk 0:02:26]}  c6 {[%clk 0:02:51]} 11. f4 {[%clk 0:02:24]}  Ng6 {[%clk 0:02:51]} 12. Be3 {[%clk 0:02:12]}  Re8 {[%clk 0:02:50]} 13. Qf3 {[%clk 0:02:07]}  Bf8 {[%clk 0:02:47]} 14. Bf2 {[%clk 0:01:37]}  Qa5 {[%clk 0:02:28]} 15. Rae1 {[%clk 0:01:29]}  Qb4 {[%clk 0:02:14]} 16. Bb3 {[%clk 0:01:13]}  c5 {[%clk 0:02:12]} 17. Na2 {[%clk 0:00:54]}  Qa5 {[%clk 0:02:01]} 18. Nf5 {[%clk 0:00:32]}  c4 {[%clk 0:01:55]} 19. Bxc4 {[%clk 0:00:27]}  Bxf5 {[%clk 0:01:55]} 20. exf5 {[%clk 0:00:26]}  Qxf5 {[%clk 0:01:56]} 21. Bd3 {[%clk 0:00:19]}  Qxf4 {[%clk 0:01:53]} 22. Bxg6 {[%clk 0:00:15]}  Qxf3 {[%clk 0:01:53]} 23. Bxf7+ {[%clk 0:00:15]}  Kxf7 {[%clk 0:01:54]} 24. gxf3 {[%clk 0:00:15]}  Rac8 {[%clk 0:01:52]} 25. Nc3 {[%clk 0:00:15]}  Rc4 {[%clk 0:01:50]} 26. Rxe8 {[%clk 0:00:13]}  Kxe8 {[%clk 0:01:51]} 27. Re1+ {[%clk 0:00:12]}  Kd7 {[%clk 0:01:50]} 28. Rd1 {[%clk 0:00:10]}  Ke6 {[%clk 0:01:45]} 29. Rd4 {[%clk 0:00:10]}  Rxd4 {[%clk 0:01:43]} 30. Bxd4 {[%clk 0:00:11]}  Nd7 {[%clk 0:01:43]} 31. Kf2 {[%clk 0:00:09]}  d5 {[%clk 0:01:40]} 32. Ke3 {[%clk 0:00:09]}  g6 {[%clk 0:01:39]} 33. Ne2 {[%clk 0:00:09]}  Bh6+ {[%clk 0:01:38]} 34. Kd3 {[%clk 0:00:05]}  Nb8 {[%clk 0:01:39]} 35. Be3 {[%clk 0:00:04]}  Bg7 {[%clk 0:01:38]} 36. Nf4+ {[%clk 0:00:03]}  Kd6 {[%clk 0:01:38]} 37. c3 {[%clk 0:00:03]}  Nc6 {[%clk 0:01:38]} 38. b4 {[%clk 0:00:03]}  Ne5+ {[%clk 0:01:38]} 39. Ke2 {[%clk 0:00:02]}  Nc4 {[%clk 0:01:38]} 40. Bd4 {[%clk 0:00:01]}  Bxd4 {[%clk 0:01:38]} 41. cxd4 {[%clk 0:00:02]}  Nb2 {[%clk 0:01:39]} 42. a5 {[%clk 0:00:01]}  Nc4 {[%clk 0:01:40]} 43. Kd3 {[%clk 0:00:01]}  Kc6 {[%clk 0:01:39]} 44. Kc3 {[%clk 0:00:02]}  Nd6 {[%clk 0:01:39]} 45. Nd3 {[%clk 0:00:01]}  Nf5 {[%clk 0:01:36]} 46. Ne5+ {[%clk 0:00:01]}  Kb5 {[%clk 0:01:37]} 47. Nf7 {[%clk 0:00:00]}  Nh4 {[%clk 0:01:34]} 0-1


[Site "https://www.chess.com"]